[Event "4NCL Div 2 2024-25"]
[Site "England"]
[Date "2025.02.16"]
[Round "6.1"]
[White "Richardson, John R"]
[Black "Hobson, Kenneth"]
[Result "0-1"]
[Annotator "ChessBase"]
[ECO "D02"]
[WhiteElo "2287"]
[BlackElo "2152"]
[PlyCount "64"]
[EventDate "2024.11.23"]
[EventType "team-tourn"]
[EventCountry "ENG"]
[SourceTitle "playchess.com"]
[Source "ChessBase"]
[SourceQuality "1"]
[TimeControl "40/6000+30:3000+30"]

1. Nf3 {[%emt 0:10:01]} Nf6 {[%emt 0:10:39]} 2. d4 {[%emt 0:00:04]} d5 {[%emt 0:00:22]} 3. g3 {[%emt 0:00:06]} Nbd7 {[%emt 0:03:55]} 4. Bg2 {[%emt 0:00:13]} Nb6 {[%emt 0:02:25]} 5. O-O {[%emt 0:02:04]} Bf5 {[%emt 0:00:15]} 6. Nbd2 {[%emt 0:02:46]} e6 {[%emt 0:01:42]} 7. b3 {[%emt 0:07:45]} Be7 {[%emt 0:04:23]} 8. Bb2 {[%emt 0:00:04]} O-O {[%emt 0:08:08]} 9. Ne5 {[%emt 0:06:57]} a5 {[%emt 0:04:26]} 10. c4 {[%emt 0:03:06]} a4 {[%emt 0:07:07]} 11. f3 {[%emt 0:06:02]} Bb4 {[%emt 0:06:18]} 12. Nb1 {[%emt 0:15:49]} Bxb1 {[%emt 0:13:12]} 13. Rxb1 {[%emt 0:00:22]} a3 {[%emt 0:01:11]} 14. Ba1 {[%emt 0:00:04]} c5 {[%emt 0:02:10]} 15. Nd3 {[%emt 0:02:37]} dxc4 {[%emt 0:04:06]} 16. Nxb4 {[%emt 0:00:04]} cxb4 {[%emt 0:01:25]} 17. bxc4 {[%emt 0:00:02]} Nxc4 {[%emt 0:00:30]} 18. Qd3 {[%emt 0:00:03]} b5 {[%emt 0:09:26]} 19. Rxb4 {[%emt 0:03:39]} Qa5 {[%emt 0:04:55]} 20. Rfb1 {[%emt 0:00:51]} Rab8 {[%emt 0:02:01]} 21. e4 {[%emt 0:02:00]} Rfc8 {[%emt 0:02:05]} 22. Bf1 {[%emt 0:04:43]} h6 {[%emt 0:04:13]} 23. R1b3 {[%emt 0:01:41]} Ne8 {[%emt 0:02:08]} 24. Qd1 {[%emt 0:03:29]} Ne3 {[%emt 0:01:08]} 25. Qb1 {[%emt 0:05:43]} Nc2 {[%emt 0:02:05]} 26. d5 {[%emt 0:09:39]} Qb6+ {[%emt 0:02:07]} 27. Kh1 {[%emt 0:00:12]} Nxb4 {[%emt 0:01:16]} 28. Rxb4 {[%emt 0:00:02]} Qf2 {[%emt 0:01:04]} 29. Bd4 {[%emt 0:02:30]} Qd2 {[%emt 0:02:58]} 30. dxe6 {[%emt 0:02:40]} fxe6 {[%emt 0:00:49]} 31. Qb3 {[%emt 0:00:42]} Kf7 {[%emt 0:00:55]} 32. Be3 {[%emt 0:00:47]} Qe1 {[%emt 0:00:27]} 0-1

[Event "4NCL Div 2 2024-25"]
[Site "England"]
[Date "2025.02.16"]
[Round "6.1"]
[White "Fava, Lorenzo"]
[Black "Korshunov, Sergey And."]
[Result "1-0"]
[Annotator "ChessBase"]
[ECO "E43"]
[WhiteElo "2269"]
[BlackElo "2330"]
[PlyCount "81"]
[EventDate "2024.11.23"]
[EventType "team-tourn"]
[EventCountry "ENG"]
[SourceTitle "playchess.com"]
[Source "ChessBase"]
[SourceQuality "1"]
[TimeControl "40/6000+30:3000+30"]

1. d4 {[%emt 0:10:01]} Nf6 {[%emt 0:10:06]} 2. c4 {[%emt 0:00:07]} e6 {[%emt 0:01:03]} 3. Nf3 {[%emt 0:00:38]} b6 {[%emt 0:03:40]} 4. Nc3 {[%emt 0:00:42]} Bb4 {[%emt 0:00:27]} 5. e3 {[%emt 0:04:49]} Ne4 {[%emt 0:04:16]} 6. Qc2 {[%emt 0:00:17]} f5 {[%emt 0:00:08]} 7. Bd3 {[%emt 0:00:19]} O-O {[%emt 0:05:14]} 8. O-O {[%emt 0:10:25]} Bxc3 {[%emt 0:03:36]} 9. bxc3 {[%emt 0:00:07]} Bb7 {[%emt 0:00:03]} 10. Nd2 {[%emt 0:03:21]} Qh4 {[%emt 0:09:06]} 11. f3 {[%emt 0:02:19]} Nxd2 {[%emt 0:00:09]} 12. Bxd2 {[%emt 0:00:10]} d6 {[%emt 0:06:12]} 13. a4 {[%emt 0:07:45]} Nc6 {[%emt 0:11:09]} 14. e4 {[%emt 0:08:20]} fxe4 {[%emt 0:00:30]} 15. Bxe4 {[%emt 0:00:36]} Na5 {[%emt 0:02:26]} 16. Rfe1 {[%emt 0:15:37]} Bxe4 {[%emt 0:07:38]} 17. Rxe4 {[%emt 0:00:23]} Qf6 {[%emt 0:00:02]} 18. Rae1 {[%emt 0:14:31]} Nxc4 {[%emt 0:22:56]} 19. Bc1 {[%emt 0:17:57]} e5 {[%emt 0:09:06]} 20. Qe2 {[%emt 0:02:19]} Qf7 {[%emt 0:00:42]} 21. dxe5 {[%emt 0:02:47]} Nxe5 {[%emt 0:00:04]} 22. c4 {[%emt 0:00:02]} Ng6 {[%emt 0:03:07]} 23. Bb2 {[%emt 0:00:37]} Rad8 {[%emt 0:00:40]} 24. h4 {[%emt 0:03:21]} d5 {[%emt 0:02:01]} 25. Rg4 {[%emt 0:00:34]} Rfe8 {[%emt 0:02:43]} 26. Qf2 {[%emt 0:00:02]} Rxe1+ {[%emt 0:02:21]} 27. Qxe1 {[%emt 0:00:01]} h5 {[%emt 0:03:11]} 28. Rg5 {[%emt 0:00:09]} c5 {[%emt 0:00:36]} 29. Qg3 {[%emt 0:01:51]} d4 {[%emt 0:00:01]} 30. Rxg6 {[%emt 0:00:10]} Re8 {[%emt 0:00:00]} 31. f4 {[%emt 0:03:37]} Re3 {[%emt 0:01:28]} 32. Rxg7+ {[%emt 0:00:47]} Qxg7 {[%emt 0:00:04]} 33. Qxe3 {[%emt 0:00:03]} Qg4 {[%emt 0:00:32]} 34. Qe8+ {[%emt 0:00:49]} Kh7 {[%emt 0:00:04]} 35. Qf7+ {[%emt 0:00:58]} Kh8 {[%emt 0:00:04]} 36. Qf6+ {[%emt 0:00:36]} Kh7 {[%emt 0:00:03]} 37. f5 {[%emt 0:00:48]} Qe2 {[%emt 0:01:39]} 38. Qg6+ {[%emt 0:00:34]} Kh8 {[%emt 0:00:03]} 39. Qh6+ {[%emt 0:00:26]} Kg8 {[%emt 0:00:02]} 40. Qg5+ {[%emt 0:00:09]} Kf8 {[%emt 0:00:14]} 41. Qf6+ {[%emt 0:50:32]} 1-0

[Event "4NCL Div 2 2024-25"]
[Site "England"]
[Date "2025.02.16"]
[Round "6.2"]
[White "Taylor, Adam A"]
[Black "Dunn, Maxim"]
[Result "1-0"]
[Annotator "ChessBase"]
[ECO "A06"]
[WhiteElo "2258"]
[BlackElo "1934"]
[PlyCount "129"]
[EventDate "2024.11.23"]
[EventType "team-tourn"]
[EventCountry "ENG"]
[SourceTitle "playchess.com"]
[Source "ChessBase"]
[SourceQuality "1"]
[TimeControl "40/6000+30:3000+30"]

1. Nf3 {[%emt 0:10:03]} d5 {[%emt 0:10:07]} 2. b3 {[%emt 0:00:25]} Bg4 {[%emt 0:00:10]} 3. e3 {[%emt 0:00:20]} Nf6 {[%emt 0:00:21]} 4. Bb2 {[%emt 0:00:13]} c6 {[%emt 0:00:23]} 5. h3 {[%emt 0:00:07]} Bh5 {[%emt 0:02:06]} 6. d4 {[%emt 0:06:42]} Nbd7 {[%emt 0:00:45]} 7. Nbd2 {[%emt 0:00:14]} e6 {[%emt 0:00:10]} 8. Be2 {[%emt 0:02:22]} Bd6 {[%emt 0:03:46]} 9. Ne5 {[%emt 0:06:19]} Bxe2 {[%emt 0:03:31]} 10. Qxe2 {[%emt 0:00:05]} Qc7 {[%emt 0:00:19]} 11. f4 {[%emt 0:01:03]} Ne4 {[%emt 0:08:53]} 12. Nxe4 {[%emt 0:00:24]} dxe4 {[%emt 0:00:09]} 13. O-O {[%emt 0:01:36]} O-O {[%emt 0:01:36]} 14. c4 {[%emt 0:10:24]} Rad8 {[%emt 0:08:20]} 15. Rad1 {[%emt 0:13:04]} f6 {[%emt 0:22:35]} 16. Nxd7 {[%emt 0:03:45]} Qxd7 {[%emt 0:00:22]} 17. a3 {[%emt 0:00:51]} a6 {[%emt 0:02:34]} 18. Qc2 {[%emt 0:04:49]} f5 {[%emt 0:00:33]} 19. Rd2 {[%emt 0:01:26]} Qe7 {[%emt 0:02:07]} 20. b4 {[%emt 0:01:22]} b5 {[%emt 0:01:21]} 21. Qb3 {[%emt 0:00:17]} g5 {[%emt 0:08:16]} 22. Qc3 {[%emt 0:22:13]} gxf4 {[%emt 0:02:57]} 23. exf4 {[%emt 0:01:31]} Kf7 {[%emt 0:09:41]} 24. d5 {[%emt 0:03:15]} cxd5 {[%emt 0:00:44]} 25. cxd5 {[%emt 0:00:09]} Rg8 {[%emt 0:01:02]} 26. Rfd1 {[%emt 0:06:07]} Rg6 {[%emt 0:05:21]} 27. dxe6+ {[%emt 0:01:18]} Rxe6 {[%emt 0:04:49]} 28. Rd5 {[%emt 0:00:27]} e3 {[%emt 0:03:56]} 29. Qd3 {[%emt 0:10:54]} e2 {[%emt 0:01:20]} 30. Re1 {[%emt 0:00:11]} Re4 {[%emt 0:01:30]} 31. Be5 {[%emt 0:02:52]} Bxe5 {[%emt 0:04:14]} 32. Rxd8 {[%emt 0:00:12]} Bd4+ {[%emt 0:00:10]} 33. Rxd4 {[%emt 0:00:14]} Qa7 {[%emt 0:00:04]} 34. Rxe2 {[%emt 0:00:42]} Qxd4+ {[%emt 0:00:57]} 35. Qxd4 {[%emt 0:00:05]} Rxd4 {[%emt 0:00:05]} 36. Rc2 {[%emt 0:00:56]} Rxf4 {[%emt 0:01:32]} 37. Rc6 {[%emt 0:01:28]} Rd4 {[%emt 0:01:31]} 38. Rxa6 {[%emt 0:00:09]} Rd3 {[%emt 0:00:11]} 39. Kf2 {[%emt 0:00:23]} Rb3 {[%emt 0:00:27]} 40. Ke2 {[%emt 0:00:38]} f4 {[%emt 0:01:00]} 41. h4 {[%emt 0:23:42]} Kg7 {[%emt 0:23:17]} 42. Ra5 {[%emt 0:11:23]} Kf6 {[%emt 0:01:07]} 43. Rxb5 {[%emt 0:00:57]} Rxa3 {[%emt 0:00:08]} 44. Rh5 {[%emt 0:00:06]} Kg6 {[%emt 0:01:20]} 45. Rg5+ {[%emt 0:00:06]} Kf6 {[%emt 0:00:07]} 46. b5 {[%emt 0:04:37]} h6 {[%emt 0:02:52]} 47. Rh5 {[%emt 0:01:18]} Kg6 {[%emt 0:00:19]} 48. Rd5 {[%emt 0:00:45]} Rb3 {[%emt 0:00:46]} 49. Rc5 {[%emt 0:00:51]} Ra3 {[%emt 0:04:55]} 50. Re5 {[%emt 0:02:53]} Rb3 {[%emt 0:00:33]} 51. Rd5 {[%emt 0:00:03]} Rg3 {[%emt 0:01:24]} 52. h5+ {[%emt 0:00:51]} Kf6 {[%emt 0:02:10]} 53. Rd6+ {[%emt 0:00:11]} Kf5 {[%emt 0:01:36]} 54. Rg6 {[%emt 0:00:12]} Rb3 {[%emt 0:00:26]} 55. b6 {[%emt 0:00:04]} Ke4 {[%emt 0:02:35]} 56. Kd2 {[%emt 0:00:06]} Rb5 {[%emt 0:00:46]} 57. Rxh6 {[%emt 0:05:57]} Rb2+ {[%emt 0:00:14]} 58. Kc3 {[%emt 0:00:03]} Rxg2 {[%emt 0:00:24]} 59. Rg6 {[%emt 0:02:11]} Rg3+ {[%emt 0:00:56]} 60. Kc2 {[%emt 0:01:38]} f3 {[%emt 0:05:19]} 61. Rxg3 {[%emt 0:02:25]} f2 {[%emt 0:00:03]} 62. b7 {[%emt 0:00:05]} f1=Q {[%emt 0:00:18]} 63. b8=Q {[%emt 0:00:06]} Qe2+ {[%emt 0:04:37]} 64. Kb1 {[%emt 0:00:51]} Qd1+ {[%emt 0:02:59]} 65. Ka2 {[%emt 0:00:52]} 1-0

[Event "4NCL Div 2 2024-25"]
[Site "England"]
[Date "2025.02.16"]
[Round "6.2"]
[White "Khoury, Theo"]
[Black "Babu, Rahul"]
[Result "1-0"]
[Annotator "ChessBase"]
[ECO "B82"]
[WhiteElo "2194"]
[BlackElo "2169"]
[PlyCount "61"]
[EventDate "2024.11.23"]
[EventType "team-tourn"]
[EventCountry "ENG"]
[SourceTitle "playchess.com"]
[Source "ChessBase"]
[SourceQuality "1"]
[TimeControl "40/6000+30:3000+30"]

1. e4 {[%emt 0:10:04]} c5 {[%emt 0:10:04]} 2. Nf3 {[%emt 0:00:21]} e6 {[%emt 0:00:02]} 3. d4 {[%emt 0:00:06]} cxd4 {[%emt 0:00:03]} 4. Nxd4 {[%emt 0:00:05]} Nc6 {[%emt 0:00:03]} 5. Nc3 {[%emt 0:00:06]} Qc7 {[%emt 0:00:04]} 6. Be3 {[%emt 0:00:04]} a6 {[%emt 0:00:05]} 7. a3 {[%emt 0:00:02]} Nf6 {[%emt 0:07:05]} 8. f4 {[%emt 0:00:07]} d6 {[%emt 0:00:05]} 9. Qf3 {[%emt 0:00:07]} Be7 {[%emt 0:17:03]} 10. O-O-O {[%emt 0:00:06]} Nxd4 {[%emt 0:02:45]} 11. Bxd4 {[%emt 0:05:16]} e5 {[%emt 0:01:51]} 12. fxe5 {[%emt 0:00:33]} dxe5 {[%emt 0:00:05]} 13. Qg3 {[%emt 0:00:08]} Ng4 {[%emt 0:17:11]} 14. Nd5 {[%emt 0:03:20]} Qd6 {[%emt 0:00:32]} 15. Bc3 {[%emt 0:08:14]} Be6 {[%emt 0:19:44]} 16. Nf6+ {[%emt 0:03:15]} Nxf6 {[%emt 0:00:05]} 17. Rxd6 {[%emt 0:00:09]} Bxd6 {[%emt 0:00:03]} 18. Bd3 {[%emt 0:03:40]} Nh5 {[%emt 0:01:46]} 19. Qg5 {[%emt 0:00:33]} g6 {[%emt 0:00:05]} 20. Rf1 {[%emt 0:02:42]} O-O {[%emt 0:08:47]} 21. Be2 {[%emt 0:06:09]} f6 {[%emt 0:01:33]} 22. Qd2 {[%emt 0:00:35]} Rad8 {[%emt 0:01:45]} 23. Bxh5 {[%emt 0:00:59]} gxh5 {[%emt 0:00:01]} 24. Qh6 {[%emt 0:01:01]} Bg4 {[%emt 0:03:15]} 25. h3 {[%emt 0:00:40]} Be2 {[%emt 0:00:01]} 26. Rf2 {[%emt 0:02:45]} Bc4 {[%emt 0:00:18]} 27. Rxf6 {[%emt 0:00:15]} Bc5 {[%emt 0:00:08]} 28. Qg5+ {[%emt 0:00:08]} Kh8 {[%emt 0:00:05]} 29. Rxf8+ {[%emt 0:00:07]} Rxf8 {[%emt 0:00:04]} 30. Bxe5+ {[%emt 0:00:07]} Rf6 {[%emt 0:00:01]} 31. Bxf6# {[%emt 0:00:39]} 1-0

[Event "4NCL Div 2 2024-25"]
[Site "England"]
[Date "2025.02.16"]
[Round "6.3"]
[White "Snape, Ian L"]
[Black "Pozimski, Szymon"]
[Result "1-0"]
[Annotator "TA"]
[ECO "A13"]
[WhiteElo "2061"]
[BlackElo "2003"]
[PlyCount "73"]
[EventDate "2024.11.23"]
[EventType "team-tourn"]
[EventCountry "ENG"]
[SourceTitle "playchess.com"]
[Source "ChessBase"]
[SourceQuality "1"]
[TimeControl "40/6000+30:3000+30"]

{[%evp 9,73,11,18,18,18,-26,22,11,31,0,37,42,52,37,56,55,81,81,81,68,79,67,81,84,114,45,51,45,89,100,167,156,185,186,186,185,191,164,183,187,168,121,371,260,238,235,235,222,292,308,398,403,466,460,525,563,799,793,1108,841,1170,770,1597,1599,1859,1831]} 1. c4 {[%emt 0:10:02]} e6 {[%emt 0:10:07]} 2. g3 {[%emt 0:00:05]} Nf6 {[%emt 0:00:05]} 3. Bg2 {[%emt 0:00:05]} d5 {[%emt 0:00:24]} 4. Nf3 {[%emt 1:32:18]} d4 {[%emt 0:02:47]} 5. d3 {[%emt 0:00:00]} Bb4+ {[%emt 0:01:51]} 6. Nbd2 {[%emt 0:00:00] Threatening Qa4+. A13: English Opening: 1...e6.} a5 {[%emt 0:00:47]} 7. O-O {[%emt 0:00:00]} O-O {[%emt 0:04:54]} (7... Nc6 $142 $1) 8. Ne5 {[%emt 0:00:00] The position is equal.} Nbd7 {[%emt 0:02:18]} 9. Ndf3 $146 {[%emt 0:00:00]} ({Predecessor:} 9. Nxd7 Qxd7 10. Nf3 Bc5 11. e3 Rd8 12. e4 h6 13. e5 Nh7 14. h4 Rb8 15. Nd2 {½-½ Giri,A (2731)-Oparin,G (2660) Titled Tuesday intern op 07th Jan Early blitz 2025 (10)}) 9... a4 {[%emt 0:03:33]} 10. Nxd7 {[%emt 0:00:00]} Qxd7 {[%emt 0:00:41]} 11. e4 {[%emt 0:00:00]} dxe3 {[%emt 0:25:58]} 12. Bxe3 {[%emt 0:00:00]} Be7 {[%emt 0:11:40]} 13. d4 {[%emt 0:00:00]} c5 {[%emt 0:09:28]} 14. Qe2 {[%emt 0:00:00]} Qc7 {[%emt 0:06:32]} 15. Rfd1 {[%emt 0:00:00]} b6 {[%emt 0:11:45]} 16. Bf4 {[%emt 0:00:00]} Qa7 {[%emt 0:00:10]} 17. d5 {[%emt 0:00:00]} ({White should try} 17. Ne5 $16 {And now Nc6 would win.} Bb7 18. Nc6 Bxc6 19. Bxc6) 17... exd5 $14 {[%emt 0:02:37]} 18. cxd5 {[%emt 0:00:00][%csl Od5] White has a strong passed pawn} Ba6 {[%emt 0:00:24]} 19. Qc2 {[%emt 0:00:00] White is more active.} Bb7 {[%emt 0:03:43] [#]} (19... Nh5 $16) 20. Ne5 $1 $36 {[%emt 0:00:00][%mdl 2048] White has strong initiative.} Bd8 {[%emt 0:06:38]} 21. Nc6 {[%emt 0:00:00]} Bxc6 {[%emt 0:00:24]} 22. dxc6 {[%emt 0:00:00]} Bc7 {[%emt 0:00:10]} 23. Qf5 {[%emt 0:00:00]} Bxf4 {[%emt 0:01:54]} 24. Qxf4 {[%emt 0:00:00]} (24. gxf4 $6 Qc7 $14) 24... Rac8 {[%emt 0:00:38]} 25. Rd6 {[%emt 0:00:00]} (25. Re1 $18) 25... b5 $2 {[%emt 0:02:37] This costs Black the game.} (25... Qc7 $16 {was necessary.} 26. Re1 a3 27. bxa3 Rfe8 28. Rxe8+ Nxe8) 26. Rad1 {[%emt 0:00:00]} Qe7 {[%emt 0:00:42]} 27. Bh3 {[%emt 0:00:00]} Rc7 {[%emt 0:00:26] [#]} 28. Bf5 $1 {[%emt 0:00:00][%cal Od6f6]} Ne8 {[%emt 0:00:33][%cal Og7g5]} 29. Rd7 {[%emt 0:00:00]} Rxd7 {[%emt 0:00:11]} 30. Rxd7 {[%emt 0:00:00]} ({Weaker is} 30. cxd7 Nf6 31. Qc7 Rd8 $18) 30... Qe1+ {[%emt 0:00:07]} 31. Kg2 {[%emt 0:00:00] White is clearly winning.} Qa5 {[%emt 0:01:21]} 32. c7 {[%emt 0:00:00]} Nf6 {[%emt 0:00:01]} 33. Rd1 {[%emt 0:00:00]} Qa8+ {[%emt 0:00:09]} 34. Kg1 {[%emt 0:00:00]} h6 {[%emt 0:00:51]} 35. Qd6 {[%emt 0:00:00]} Re8 {[%emt 0:00:55]} 36. Qxc5 {[%emt 0:00:00]} g6 {[%emt 0:00:30]} 37. c8=Q {[%emt 0:00:00] Weighted Error Value: White=0.50/Black=0.89  Loses game:     	---       	Black=1      Mistake:       	White=2     	Black=2      Inaccurate:     	White=2     	Black=7      OK:         	White=8     	Black=9      Best:        	White=2     	Black=1      Strong:       	White=1     	---} 1-0

[Event "4NCL Div 2 2024-25"]
[Site "England"]
[Date "2025.02.16"]
[Round "6.3"]
[White "Cole, James"]
[Black "Verbytski, Oleg"]
[Result "1/2-1/2"]
[Annotator "TA"]
[ECO "B53"]
[WhiteElo "1974"]
[BlackElo "1968"]
[PlyCount "64"]
[EventDate "2024.11.23"]
[EventType "team-tourn"]
[EventCountry "ENG"]
[SourceTitle "playchess.com"]
[Source "ChessBase"]
[SourceQuality "1"]
[TimeControl "40/6000+30:3000+30"]

{[%evp 22,64,0,-5,0,-12,11,0,16,6,15,8,2,-26,0,-12,-10,-26,0,0,-27,-52,-50,-51,-53,-50,-60,-60,-84,-60,-10,-8,0,0,0,0,0,0,25,0,60,54,71,0,0]} 1. e4 {[%emt 0:10:03]} c5 {[%emt 0:10:20]} 2. Nf3 {[%emt 0:00:04]} d6 {[%emt 0:00:07]} 3. d4 {[%emt 0:00:03]} cxd4 {[%emt 0:00:03]} 4. Qxd4 {[%emt 0:00:02]} Nc6 {[%emt 0:00:06]} 5. Bb5 {[%emt 0:00:03]} Bd7 {[%emt 0:00:11]} 6. Bxc6 {[%emt 0:00:05]} Bxc6 {[%emt 0:00:04]} 7. Nc3 {[%emt 0:00:04]} Nf6 {[%emt 0:00:47]} 8. Bg5 {[%emt 0:00:05]} e6 {[%emt 0:00:04]} 9. O-O-O {[%emt 0:00:14]} Be7 {[%emt 0:00:06]} 10. Qd3 {[%emt 0:00:12]} Qa5 {[%emt 0:01:36]} 11. h4 {[%emt 0:00:35]} h6 {[%emt 0:01:12]} 12. Bd2 {[%emt 0:00:09]} Qc7 {[%emt 0:00:18] B53: Sicilian: 2...d6: Lines with Qxd4.} 13. Nd4 {[%emt 0:01:49]} a6 {[%emt 0:01:05]} 14. f4 {[%emt 0:31:02][%cal Bf2f4,Bf4f5][%mdl 32]} Ng4 $146 {[%emt 0:14:47]} ({Predecessor:} 14... d5 15. e5 Nd7 16. Qg3 O-O-O 17. Qxg7 Bc5 18. Nce2 Bxd4 19. Nxd4 Nc5 20. Qg3 Rdg8 {1-0 Nemeth,M (2488)-Neugebauer,M (2481) SVK-chT 1920 2019 (2.4)}) 15. Qe2 {[%emt 0:06:47] Prevents Nf2.} h5 {[%emt 0:00:34]} 16. f5 {[%emt 0:09:08]} e5 {[%emt 0:05:49]} 17. Nf3 {[%emt 0:02:31]} Rc8 {[%emt 0:01:35]} 18. Kb1 {[%emt 0:05:58]} b5 {[%emt 0:03:52] [#] and ...b4 should not be overlooked} 19. Bg5 {[%emt 0:01:28]} f6 {[%emt 0:14:01]} 20. Bc1 {[%emt 0:00:08]} Qa7 {[%emt 0:01:14]} 21. Rhf1 {[%emt 0:02:46]} b4 {[%emt 0:00:35]} 22. Nd5 {[%emt 0:02:42]} Bb5 {[%emt 0:00:39]} 23. Qd2 {[%emt 0:02:49][%cal Od2b4]} Bxf1 {[%emt 0:02:23]} 24. Rxf1 {[%emt 0:00:03]} a5 {[%emt 0:00:48]} 25. Qd3 {[%emt 0:07:18]} Qb7 {[%emt 0:01:10]} (25... Bd8 $15) 26. Nd2 $1 $11 {[%emt 0:01:50]} Qc6 {[%emt 0:03:04]} 27. b3 {[%emt 0:00:46]} Kf7 {[%emt 0:01:50]} 28. Nc4 {[%emt 0:00:47] Excellent horsemanship.} Qc5 {[%emt 0:01:45]} 29. Qe2 {[%emt 0:05:41]} Ra8 {[%emt 0:06:52]} 30. Nce3 {[%emt 0:07:43]} Nxe3 {[%emt 0:03:05]} (30... a4 $1 $11) 31. Bxe3 $14 {[%emt 0:00:05]} Qc6 {[%emt 0:00:44]} 32. Rg1 {[%emt 0:01:37] Some like it hot. White is much more active.} ({White should try} 32. g4 $16) 32... a4 {[%emt 0:01:59] Weighted Error Value: White=0.12 (very precise) /Black=0.15 (very precise)   Mistake:       	White=1     	Black=2      Inaccurate:     	White=1     	Black=1      OK:         	White=9     	Black=9      Strong:       	White=1     	---} 1/2-1/2

[Event "4NCL Div 2 2024-25"]
[Site "England"]
[Date "2025.02.16"]
[Round "6.4"]
[White "Manley, Jon P"]
[Black "Baltrunas, Evaldas"]
[Result "1-0"]
[Annotator "TA"]
[ECO "C00"]
[WhiteElo "2072"]
[BlackElo "1995"]
[PlyCount "78"]
[EventDate "2024.11.23"]
[EventType "team-tourn"]
[EventCountry "ENG"]
[SourceTitle "playchess.com"]
[Source "ChessBase"]
[SourceQuality "1"]
[TimeControl "40/6000+30:3000+30"]

{[%evp 16,78,-9,-40,-27,-33,-27,-29,-35,-39,-29,-35,-34,-55,-57,-72,-60,-72,-60,-60,-62,-72,-24,-28,-23,-48,49,7,17,18,40,40,38,35,46,30,37,4,7,-41,-9,-30,-91,-78,0,0,0,-108,-113,-357,0,0,6,5,12,3,6,9,333,312,409,421,1790,1756,29994]} 1. e4 {[%emt 0:10:03]} c5 {[%emt 0:10:05]} 2. Nf3 {[%emt 0:00:22]} e6 {[%emt 0:00:14]} 3. d3 {[%emt 0:01:20]} Nc6 {[%emt 0:00:26]} 4. g3 {[%emt 0:00:05]} d5 {[%emt 0:00:25]} 5. Qe2 {[%emt 0:00:37]} Nf6 {[%emt 0:00:55]} 6. Bg2 {[%emt 0:02:45]} Be7 {[%emt 0:00:27]} 7. O-O {[%emt 0:03:02]} O-O {[%emt 0:01:33]} 8. e5 {[%emt 0:03:07]} Nd7 {[%emt 0:00:05]} 9. h4 {[%emt 0:03:58]} Qc7 {[%emt 0:01:10][%cal Rd7e5] C00: French: Unusual White 2nd moves.} 10. Re1 {[%emt 0:02:17]} b5 {[%emt 0:02:07]} 11. Bf4 {[%emt 0:03:11]} Bb7 {[%emt 0:00:44] Black has an edge.} 12. c3 {[%emt 0:06:38]} Rfc8 {[%emt 0:01:34]} 13. Nbd2 {[%emt 0:01:20]} a5 {[%emt 0:01:44]} 14. h5 {[%emt 0:03:15]} h6 {[%emt 0:05:56]} 15. Nh2 {[%emt 0:05:42][%cal Og2d5]} Qd8 {[%emt 0:06:59]} 16. Ng4 {[%emt 0:10:45]} Bf8 {[%emt 0:02:08]} 17. Nf3 {[%emt 0:06:14]} b4 {[%emt 0:05:24]} 18. c4 $146 {[%emt 0:09:41] and cxd5 would now be decisive} ({Predecessor:} 18. Qd2 a4 19. c4 Ne7 20. Nh4 Ra7 21. Rad1 Nb6 22. Qc1 Kh8 23. Nh2 Qe8 24. N4f3 dxc4 25. dxc4 {1-0 Paichadze,L (2564)-Garifullina,L (2106) Moscow ACF Botvinnik Memorial 2018 (4.4)}) 18... Ne7 {[%emt 0:09:04]} (18... Nb6 $17) 19. Ne3 $11 {[%emt 0:09:48]} Nb6 {[%emt 0:11:36]} 20. g4 {[%emt 0:03:54]} Ba6 {[%emt 0:10:07]} (20... Nc6 $15) 21. b3 {[%emt 0:05:35]} a4 {[%emt 0:01:40]} 22. g5 {[%emt 0:00:25]} axb3 {[%emt 0:06:06]} 23. axb3 {[%emt 0:00:39]} Bb7 {[%emt 0:02:18]} 24. gxh6 {[%emt 0:03:25]} gxh6 {[%emt 0:00:04]} 25. Ng4 {[%emt 0:00:53][%csl Oh6] White attacks a weakness} Nf5 {[%emt 0:02:41]} 26. Qd2 {[%emt 0:01:50][%cal Rf4h6]} dxc4 {[%emt 0:02:28]} (26... Rxa1 {simplifies} 27. Rxa1 dxc4 28. dxc4 Bxf3 29. Qxd8 Rxd8 30. Bxf3 Bg7) 27. bxc4 {[%emt 0:01:50]} (27. dxc4 $11 Qxd2 28. Nxd2 Bxg2 29. Kxg2) 27... Rxa1 {[%emt 0:10:58] NOTEXT-51077 Black (b4)} 28. Rxa1 {[%emt 0:00:05][%cal Rf4h6]} Ra8 {[%emt 0:00:07]} (28... Nd7 $11) 29. Rd1 $17 {[%emt 0:00:51][%cal Rf4h6] [#]} Kh7 {[%emt 0:08:18]} ({Black should play} 29... Na4 $1 $17 {[%cal Ra4c3] White must now prevent ...Nc3.} 30. Bxh6 Nc3 (30... Bxf3 31. Bxf3 Ra6 32. Bxf8 $16)) 30. Nf6+ {[%emt 0:00:44]} Kh8 {[%emt 0:00:01]} 31. Ng4 {[%emt 0:01:01] [#]} (31. d4 $11 {remains equal.}) 31... b3 $1 {[%emt 0:04:33]} 32. Qb2 {[%emt 0:02:33]} (32. Rb1 $17) 32... Nd4 $2 {[%emt 0:02:08]} (32... Bxf3 $19 33. Bxf3 Nd4 34. Bxa8 Na4) 33. Nxd4 $11 {[%emt 0:02:01]} Bxg2 {[%emt 0:00:02]} 34. Kxg2 {[%emt 0:02:03]} (34. Nxb3 $2 Bf3 35. Nf6 Bxd1 $19) 34... Qxd4 {[%emt 0:00:35]} 35. Qxd4 {[%emt 0:00:34]} cxd4 {[%emt 0:00:01]} 36. Rb1 {[%emt 0:00:24]} (36. Bxh6 $2 b2 37. Rb1 Na4 $19) 36... Ra3 {[%emt 0:00:20][%mdl 8192]} (36... Nd7 $11) 37. Bc1 $1 $18 {[%emt 0:00:24]} (37. Bxh6 $2 {perishes.} Bxh6 38. Nxh6 Kg7 $19) (37. Nxh6 Na4 38. Nxf7+ Kg8 $19) 37... b2 {[%emt 0:02:54]} 38. Rxb2 {[%emt 0:00:58]} ({Inferior is} 38. Bxb2 Rb3 $11 (38... Rxd3 39. Bc1 $14)) 38... Bc5 {[%emt 0:00:52] [#]} (38... Ra1 $142 39. Bxh6 (39. Nxh6 Rxc1 40. Nxf7+ Kg8 $16) 39... Bxh6 40. Rxb6 Bd2) 39. Rxb6 $1 {[%emt 0:01:30][%mdl 512] Rb8+ would kill now.} Kh7 {[%emt 0:00:00] Weighted Error Value: White=0.26 (precise) /Black=0.69  Loses game:     	White=1     	Black=1      Missed win:     	---       	Black=1      Mistake:       	White=2     	Black=5      Inaccurate:     	White=2     	Black=3      OK:         	White=9     	Black=8      Best:        	White=2     	Black=1      Strong:       	White=1     	Black=1      Brilliant:      	White=1     	---} (39... Ra8 40. Rb7) 1-0